[Event "Early-Titled-Tuesday-Blitz-September-05-2023"]
[Site "Chess.com"]
[Date "2023.09.05"]
[Round "9"]
[White "InadaC"]
[Black "suspiciumchess"]
[Result "0-1"]
[WhiteElo "1728"]
[BlackElo "2258"]
[TimeControl "180+1"]
[EndTime "9:43:47 PDT"]
[Termination "suspiciumchess won by checkmate"]

1. d4 {[%clk 0:03:00.6]} 1... d5 {[%clk 0:02:40.4]} 2. c4 {[%clk 0:03:00.1]}
2... c6 {[%clk 0:02:40.9]} 3. cxd5 {[%clk 0:02:59.1]} 3... cxd5 {[%clk
0:02:41.8]} 4. Bg5 {[%clk 0:02:57.9]} 4... Nf6 {[%clk 0:02:31]} 5. Bxf6 {[%clk
0:02:57.5]} 5... exf6 {[%clk 0:02:30.3]} 6. e3 {[%clk 0:02:57.9]} 6... Bd6
{[%clk 0:02:28.8]} 7. Nc3 {[%clk 0:02:57.9]} 7... Be6 {[%clk 0:02:28.1]} 8. Qa4+
{[%clk 0:02:55.4]} 8... Nd7 {[%clk 0:02:24]} 9. Qb3 {[%clk 0:02:53.7]} 9... O-O
{[%clk 0:02:21.5]} 10. Nf3 {[%clk 0:02:51.7]} 10... f5 {[%clk 0:02:21.4]} 11.
Be2 {[%clk 0:02:47.5]} 11... Nf6 {[%clk 0:02:18.1]} 12. O-O {[%clk 0:02:46.8]}
12... Qe7 {[%clk 0:02:11.7]} 13. Nb5 {[%clk 0:02:46.3]} 13... Bb8 {[%clk
0:02:10.4]} 14. Rac1 {[%clk 0:02:44.7]} 14... f4 {[%clk 0:02:04.5]} 15. Ne5
{[%clk 0:02:36.1]} 15... Ne4 {[%clk 0:01:55.2]} 16. Nf3 {[%clk 0:02:21.3]} 16...
a6 {[%clk 0:01:54.6]} 17. Nc3 {[%clk 0:02:20]} 17... fxe3 {[%clk 0:01:54.7]} 18.
fxe3 {[%clk 0:02:17]} 18... Rd8 {[%clk 0:01:37.5]} 19. Rfd1 {[%clk 0:02:14.8]}
19... Bd6 {[%clk 0:01:35.2]} 20. Na4 {[%clk 0:02:08.4]} 20... b5 {[%clk
0:01:32.7]} 21. Nc3 {[%clk 0:02:05.1]} 21... Qf6 {[%clk 0:01:26.2]} 22. Rf1
{[%clk 0:02:02.6]} 22... Qh6 {[%clk 0:01:25.9]} 23. Qc2 {[%clk 0:01:59.8]} 23...
Qxe3+ {[%clk 0:01:24.7]} 24. Kh1 {[%clk 0:01:54.8]} 24... Nf2+ {[%clk
0:01:21.2]} 25. Rxf2 {[%clk 0:01:49.5]} 25... Qxf2 {[%clk 0:01:21.4]} 26. Rf1
{[%clk 0:01:47.2]} 26... Qe3 {[%clk 0:01:20.7]} 27. Nd1 {[%clk 0:01:45.9]} 27...
Qh6 {[%clk 0:01:16.6]} 28. Nf2 {[%clk 0:01:44.2]} 28... Rac8 {[%clk 0:01:16]}
29. Qd1 {[%clk 0:01:39.4]} 29... Rc7 {[%clk 0:01:13]} 30. a4 {[%clk 0:01:38.2]}
30... bxa4 {[%clk 0:01:10.2]} 31. Qxa4 {[%clk 0:01:37.8]} 31... Rdc8 {[%clk
0:01:05.7]} 32. Bxa6 {[%clk 0:01:35.5]} 32... Rc1 {[%clk 0:01:04.5]} 33. Be2
{[%clk 0:01:28.5]} 33... g5 {[%clk 0:00:57.9]} 34. Qa6 {[%clk 0:01:16.8]} 34...
R1c6 {[%clk 0:00:52.5]} 35. Qa4 {[%clk 0:01:10.7]} 35... g4 {[%clk 0:00:52.5]}
36. Ne5 {[%clk 0:01:10.4]} 36... Bxe5 {[%clk 0:00:53]} 37. dxe5 {[%clk
0:01:10.5]} 37... g3 {[%clk 0:00:53.7]} 38. Ng4 {[%clk 0:01:07.6]} 38... Bxg4
{[%clk 0:00:53.3]} 39. Qxg4+ {[%clk 0:01:05.9]} 39... Qg6 {[%clk 0:00:47]} 40.
Qf4 {[%clk 0:01:02]} 40... gxh2 {[%clk 0:00:42.2]} 41. Kxh2 {[%clk 0:01:00.1]}
41... Rc2 {[%clk 0:00:37.6]} 42. Rf2 {[%clk 0:00:47.9]} 42... Rxe2 {[%clk
0:00:27.9]} 43. Rxe2 {[%clk 0:00:35.7]} 43... Qh5+ {[%clk 0:00:27.4]} 44. Kg1
{[%clk 0:00:34.6]} 44... Qxe2 {[%clk 0:00:26.5]} 45. Qg5+ {[%clk 0:00:33.8]}
45... Kf8 {[%clk 0:00:27.1]} 46. Qf6 {[%clk 0:00:29.7]} 46... Qd1+ {[%clk
0:00:17.5]} 47. Kh2 {[%clk 0:00:29]} 47... Qh5+ {[%clk 0:00:17.2]} 48. Kg1
{[%clk 0:00:29]} 48... Rc1+ {[%clk 0:00:16.5]} 49. Kf2 {[%clk 0:00:29.5]} 49...
Qg6 {[%clk 0:00:14.1]} 50. Qd8+ {[%clk 0:00:26.7]} 50... Kg7 {[%clk 0:00:14.5]}
51. Qxd5 {[%clk 0:00:26.4]} 51... Rc2+ {[%clk 0:00:14]} 52. Kf1 {[%clk
0:00:26.8]} 52... Qf5+ {[%clk 0:00:13.6]} 53. Kg1 {[%clk 0:00:26.2]} 53... Rxb2
{[%clk 0:00:12.7]} 54. Qd4 {[%clk 0:00:24.3]} 54... Rb1+ {[%clk 0:00:11.7]} 55.
Kh2 {[%clk 0:00:23.7]} 55... Qh5+ {[%clk 0:00:12.3]} 56. Kg3 {[%clk 0:00:23.9]}
56... Rb3+ {[%clk 0:00:13.2]} 57. Kf2 {[%clk 0:00:24.1]} 57... Qf5+ {[%clk
0:00:12.1]} 58. Kg1 {[%clk 0:00:23.4]} 58... Rg3 {[%clk 0:00:09.6]} 59. e6+
{[%clk 0:00:22.3]} 59... Qf6 {[%clk 0:00:10.2]} 60. Qd6 {[%clk 0:00:12.6]} 60...
Rg6 {[%clk 0:00:05.3]} 61. e7 {[%clk 0:00:10]} 61... Qxd6 {[%clk 0:00:05.5]} 62.
e8=Q {[%clk 0:00:10.4]} 62... Qg3 {[%clk 0:00:03.5]} 63. Qe2 {[%clk 0:00:09.4]}
63... Qg5 {[%clk 0:00:04]} 64. Qf2 {[%clk 0:00:09.6]} 64... Qf6 {[%clk
0:00:04.9]} 65. Qb2 {[%clk 0:00:10]} 65... Qxb2 {[%clk 0:00:04.5]} 66. Kh2
{[%clk 0:00:10.4]} 66... Qb1 {[%clk 0:00:05.4]} 67. Kh3 {[%clk 0:00:11.3]} 67...
Qc2 {[%clk 0:00:06.3]} 68. g4 {[%clk 0:00:11.8]} 68... Qe4 {[%clk 0:00:06.1]}
69. Kh4 {[%clk 0:00:12.7]} 69... Qxg4# {[%clk 0:00:06.7]} 0-1

[Event "Early-Titled-Tuesday-Blitz-September-05-2023"]
[Site "Chess.com"]
[Date "2023.09.05"]
[Round "9"]
[White "noblerone"]
[Black "Cheer_Down"]
[Result "1-0"]
[WhiteElo "2530"]
[BlackElo "2428"]
[TimeControl "180+1"]
[EndTime "9:43:48 PDT"]
[Termination "noblerone won on time"]

1. d4 {[%clk 0:03:00.9]} 1... Nf6 {[%clk 0:02:59.5]} 2. Nf3 {[%clk 0:03:01.1]}
2... d5 {[%clk 0:02:58.9]} 3. Bg5 {[%clk 0:03:01.5]} 3... Ne4 {[%clk 0:02:58]}
4. Bf4 {[%clk 0:03:01.8]} 4... c5 {[%clk 0:02:57.4]} 5. e3 {[%clk 0:02:59.9]}
5... Nc6 {[%clk 0:02:56.7]} 6. c3 {[%clk 0:02:59.8]} 6... Qb6 {[%clk 0:02:56.7]}
7. Qb3 {[%clk 0:02:59.3]} 7... c4 {[%clk 0:02:53.9]} 8. Qxb6 {[%clk 0:02:56.6]}
8... axb6 {[%clk 0:02:54.8]} 9. Nfd2 {[%clk 0:02:56.9]} 9... Nxd2 {[%clk
0:02:50.6]} 10. Nxd2 {[%clk 0:02:57.8]} 10... b5 {[%clk 0:02:48.5]} 11. e4
{[%clk 0:02:56.2]} 11... e6 {[%clk 0:02:48.6]} 12. Be2 {[%clk 0:02:56.1]} 12...
b4 {[%clk 0:02:24.4]} 13. Bf3 {[%clk 0:02:52.3]} 13... bxc3 {[%clk 0:02:22.5]}
14. bxc3 {[%clk 0:02:52]} 14... Ra3 {[%clk 0:02:21.1]} 15. Nb1 {[%clk
0:02:48.5]} 15... Ra5 {[%clk 0:02:20.1]} 16. O-O {[%clk 0:02:41.8]} 16... dxe4
{[%clk 0:02:01.9]} 17. Bxe4 {[%clk 0:02:41.2]} 17... g5 {[%clk 0:02:01.7]} 18.
Bc7 {[%clk 0:02:32.1]} 18... Ra4 {[%clk 0:02:00.2]} 19. Nd2 {[%clk 0:02:09.9]}
19... f5 {[%clk 0:01:53.4]} 20. Bc2 {[%clk 0:01:55.7]} 20... Ra3 {[%clk
0:01:52.9]} 21. Nb1 {[%clk 0:01:55.5]} 21... Ra6 {[%clk 0:01:49.1]} 22. Re1
{[%clk 0:01:34.9]} 22... Kf7 {[%clk 0:01:45.3]} 23. h3 {[%clk 0:01:15.5]} 23...
b5 {[%clk 0:01:37.9]} 24. a4 {[%clk 0:00:59.5]} 24... b4 {[%clk 0:01:37.8]} 25.
cxb4 {[%clk 0:00:52.1]} 25... Nxd4 {[%clk 0:01:29.1]} 26. Bd1 {[%clk 0:00:25.3]}
26... Bxb4 {[%clk 0:01:26.7]} 27. Re3 {[%clk 0:00:23.7]} 27... f4 {[%clk
0:01:18.8]} 28. Re4 {[%clk 0:00:20.6]} 28... Bc5 {[%clk 0:01:09.3]} 29. Be5
{[%clk 0:00:19.4]} 29... Rd8 {[%clk 0:01:09.4]} 30. Nc3 {[%clk 0:00:17.1]} 30...
Bb7 {[%clk 0:01:08]} 31. Re1 {[%clk 0:00:16.3]} 31... Bb4 {[%clk 0:00:41.9]} 32.
Rc1 {[%clk 0:00:15.5]} 32... Nb3 {[%clk 0:00:31.9]} 33. Rb1 {[%clk 0:00:15.6]}
33... Bxc3 {[%clk 0:00:26.2]} 34. Bxc3 {[%clk 0:00:15.5]} 34... Bd5 {[%clk
0:00:26.5]} 35. a5 {[%clk 0:00:13.1]} 35... Nxa5 {[%clk 0:00:26]} 36. Bh5+
{[%clk 0:00:12.4]} 36... Kf8 {[%clk 0:00:21.2]} 37. Re5 {[%clk 0:00:11.8]} 37...
h6 {[%clk 0:00:20.8]} 38. h4 {[%clk 0:00:11.9]} 38... Nc6 {[%clk 0:00:19.2]} 39.
Ree1 {[%clk 0:00:10.9]} 39... Ra3 {[%clk 0:00:17.5]} 40. Bf6 {[%clk 0:00:10.5]}
40... Rb8 {[%clk 0:00:13]} 41. Rxb8+ {[%clk 0:00:08.6]} 41... Nxb8 {[%clk
0:00:13.3]} 42. hxg5 {[%clk 0:00:09.5]} 42... hxg5 {[%clk 0:00:13.4]} 43. Bxg5
{[%clk 0:00:09.3]} 43... f3 {[%clk 0:00:13.1]} 44. Bf4 {[%clk 0:00:07]} 44...
Nc6 {[%clk 0:00:12.2]} 45. Bd6+ {[%clk 0:00:07.4]} 45... Kg7 {[%clk 0:00:10.6]}
46. Bxa3 {[%clk 0:00:08.3]} 46... fxg2 {[%clk 0:00:10.7]} 47. f3 {[%clk
0:00:07.3]} 47... Nd4 {[%clk 0:00:09.7]} 48. Kxg2 {[%clk 0:00:06.7]} 48... Nc2
{[%clk 0:00:09.9]} 49. Rc1 {[%clk 0:00:03.7]} 49... Nxa3 {[%clk 0:00:09.3]} 50.
Kf2 {[%clk 0:00:03.9]} 50... Nb5 {[%clk 0:00:09.2]} 51. Ke3 {[%clk 0:00:04.2]}
51... Na3 {[%clk 0:00:08.8]} 52. f4 {[%clk 0:00:04.3]} 52... Kf6 {[%clk
0:00:09]} 53. Bf3 {[%clk 0:00:04.6]} 53... Bxf3 {[%clk 0:00:06.5]} 54. Kxf3
{[%clk 0:00:05.5]} 54... Nb5 {[%clk 0:00:05]} 55. Ke4 {[%clk 0:00:05.7]} 55...
Nd6+ {[%clk 0:00:05.3]} 56. Kd4 {[%clk 0:00:05]} 56... Kf5 {[%clk 0:00:04.9]}
57. Kc5 {[%clk 0:00:03.6]} 57... Ne4+ {[%clk 0:00:04.5]} 58. Kxc4 {[%clk
0:00:03.5]} 58... Kxf4 {[%clk 0:00:05.2]} 59. Kd4 {[%clk 0:00:03.8]} 59... e5+
{[%clk 0:00:05.2]} 60. Kd3 {[%clk 0:00:03.2]} 60... Nf2+ {[%clk 0:00:05.4]} 61.
Ke2 {[%clk 0:00:03.6]} 61... Ne4 {[%clk 0:00:05.9]} 62. Rf1+ {[%clk 0:00:04.2]}
62... Kg5 {[%clk 0:00:06.3]} 63. Ke3 {[%clk 0:00:04.8]} 63... Ng3 {[%clk
0:00:05.7]} 64. Rg1 {[%clk 0:00:05.3]} 64... Kg4 {[%clk 0:00:06.2]} 65. Kf2
{[%clk 0:00:05.9]} 65... Kf4 {[%clk 0:00:05]} 66. Rxg3 {[%clk 0:00:06.4]} 66...
e4 {[%clk 0:00:05.9]} 67. Rg8 {[%clk 0:00:06.4]} 67... e3+ {[%clk 0:00:06.8]}
68. Ke2 {[%clk 0:00:06.9]} 68... Ke4 {[%clk 0:00:07.5]} 69. Re8+ {[%clk
0:00:07.6]} 69... Kd4 {[%clk 0:00:08.4]} 70. Rxe3 {[%clk 0:00:08.4]} 1-0

[Event "Early-Titled-Tuesday-Blitz-September-05-2023"]
[Site "Chess.com"]
[Date "2023.09.05"]
[Round "9"]
[White "Agibileg"]
[Black "Emp3rador"]
[Result "1/2-1/2"]
[WhiteElo "2667"]
[BlackElo "2494"]
[TimeControl "180+1"]
[EndTime "9:43:52 PDT"]
[Termination "Game drawn by repetition"]

1. d4 {[%clk 0:03:00]} 1... d5 {[%clk 0:03:00]} 2. c4 {[%clk 0:02:56.8]} 2... c6
{[%clk 0:03:00.6]} 3. Nf3 {[%clk 0:02:56.1]} 3... Nf6 {[%clk 0:03:01]} 4. Nc3
{[%clk 0:02:54.6]} 4... dxc4 {[%clk 0:03:01.1]} 5. g3 {[%clk 0:02:51.2]} 5... b5
{[%clk 0:02:59.5]} 6. Bg2 {[%clk 0:02:51.4]} 6... e6 {[%clk 0:03:00]} 7. O-O
{[%clk 0:02:51.5]} 7... Bb7 {[%clk 0:03:00.1]} 8. a4 {[%clk 0:02:51.3]} 8... a6
{[%clk 0:02:58.7]} 9. Bg5 {[%clk 0:02:48.2]} 9... Be7 {[%clk 0:02:46.3]} 10.
Bxf6 {[%clk 0:02:39.2]} 10... gxf6 {[%clk 0:02:47.2]} 11. Qc2 {[%clk 0:02:23.5]}
11... Nd7 {[%clk 0:02:39.4]} 12. Rfd1 {[%clk 0:02:18.2]} 12... Qb6 {[%clk
0:02:36.3]} 13. Ne4 {[%clk 0:02:13.2]} 13... Rd8 {[%clk 0:02:10.5]} 14. b3
{[%clk 0:02:10.5]} 14... f5 {[%clk 0:01:44.8]} 15. Ned2 {[%clk 0:02:10]} 15...
c5 {[%clk 0:01:37.7]} 16. bxc4 {[%clk 0:02:05.9]} 16... cxd4 {[%clk 0:01:34.3]}
17. cxb5 {[%clk 0:02:02.4]} 17... axb5 {[%clk 0:01:15.7]} 18. axb5 {[%clk
0:02:03.3]} 18... Bf6 {[%clk 0:01:02.1]} 19. Nc4 {[%clk 0:02:02.2]} 19... Qc5
{[%clk 0:01:00.4]} 20. Rac1 {[%clk 0:01:51.4]} 20... O-O {[%clk 0:00:54.8]} 21.
Na5 {[%clk 0:01:36.7]} 21... Qxc2 {[%clk 0:00:48.5]} 22. Rxc2 {[%clk 0:01:37.6]}
22... Be4 {[%clk 0:00:45.5]} 23. Rc7 {[%clk 0:01:37.5]} 23... Nb6 {[%clk
0:00:34.3]} 24. Nc6 {[%clk 0:01:36.6]} 24... Rd5 {[%clk 0:00:20.5]} 25. Nfxd4
{[%clk 0:01:09.4]} 25... Bxg2 {[%clk 0:00:18.3]} 26. Kxg2 {[%clk 0:01:07.9]}
26... e5 {[%clk 0:00:16.5]} 27. Ra1 {[%clk 0:00:55]} 27... exd4 {[%clk 0:00:16]}
28. Ra6 {[%clk 0:00:55.4]} 28... Nc8 {[%clk 0:00:15.9]} 29. b6 {[%clk
0:00:51.7]} 29... Rb5 {[%clk 0:00:15.4]} 30. b7 {[%clk 0:00:50.7]} 30... Nd6
{[%clk 0:00:14.8]} 31. b8=Q {[%clk 0:00:48]} 31... Rbxb8 {[%clk 0:00:13.4]} 32.
Nxb8 {[%clk 0:00:48.9]} 32... Rxb8 {[%clk 0:00:13.1]} 33. Rxd6 {[%clk
0:00:45.8]} 33... Be5 {[%clk 0:00:13.7]} 34. Rcd7 {[%clk 0:00:43.8]} 34... Bxd6
{[%clk 0:00:14.1]} 35. Rxd6 {[%clk 0:00:44.7]} 35... Rb4 {[%clk 0:00:14.8]} 36.
Kf3 {[%clk 0:00:44.3]} 36... Kg7 {[%clk 0:00:15.2]} 37. Kf4 {[%clk 0:00:44]}
37... Rb2 {[%clk 0:00:15.5]} 38. Kf3 {[%clk 0:00:39.2]} 38... Rb3+ {[%clk
0:00:15.9]} 39. Kg2 {[%clk 0:00:39.4]} 39... Rb2 {[%clk 0:00:16.4]} 40. Rxd4
{[%clk 0:00:34.1]} 40... Rxe2 {[%clk 0:00:16.4]} 41. h4 {[%clk 0:00:33.4]} 41...
Re6 {[%clk 0:00:14.9]} 42. Kf3 {[%clk 0:00:32.1]} 42... Kf6 {[%clk 0:00:15.4]}
43. Ra4 {[%clk 0:00:27.4]} 43... Rb6 {[%clk 0:00:15.3]} 44. Kf4 {[%clk
0:00:27.1]} 44... h6 {[%clk 0:00:15.6]} 45. f3 {[%clk 0:00:24.3]} 45... Kg6
{[%clk 0:00:15.4]} 46. Ra5 {[%clk 0:00:20.6]} 46... Rb4+ {[%clk 0:00:14.9]} 47.
Ke3 {[%clk 0:00:20.5]} 47... Rb3+ {[%clk 0:00:15.4]} 48. Kf2 {[%clk 0:00:18.2]}
48... Rb2+ {[%clk 0:00:15.1]} 49. Kf1 {[%clk 0:00:16.6]} 49... Rb1+ {[%clk
0:00:13.6]} 50. Kg2 {[%clk 0:00:16.5]} 50... Rb2+ {[%clk 0:00:14.3]} 51. Kh3
{[%clk 0:00:16.8]} 51... Rf2 {[%clk 0:00:14.1]} 52. h5+ {[%clk 0:00:13.1]} 52...
Kf6 {[%clk 0:00:12]} 53. f4 {[%clk 0:00:13.3]} 53... Re2 {[%clk 0:00:10.5]} 54.
Ra6+ {[%clk 0:00:12.4]} 54... Kg7 {[%clk 0:00:10.8]} 55. Ra1 {[%clk 0:00:09.7]}
55... Rb2 {[%clk 0:00:10.6]} 56. Rg1 {[%clk 0:00:09.7]} 56... Kf6 {[%clk
0:00:10.5]} 57. Rg2 {[%clk 0:00:09.7]} 57... Rxg2 {[%clk 0:00:09]} 58. Kxg2
{[%clk 0:00:10.6]} 58... Ke6 {[%clk 0:00:09.7]} 59. Kf3 {[%clk 0:00:08.7]} 59...
Kd5 {[%clk 0:00:10.4]} 60. Ke3 {[%clk 0:00:08.2]} 60... Kc4 {[%clk 0:00:10.8]}
61. Ke2 {[%clk 0:00:07.8]} 61... Kd4 {[%clk 0:00:09.8]} 62. Kd2 {[%clk 0:00:08]}
62... Ke4 {[%clk 0:00:10.2]} 63. Ke2 {[%clk 0:00:08.1]} 63... f6 {[%clk
0:00:10.7]} 64. Kf2 {[%clk 0:00:07.2]} 64... Kd3 {[%clk 0:00:11]} 65. Kf3 {[%clk
0:00:07.6]} 65... Kd4 {[%clk 0:00:11.6]} 66. Kf2 {[%clk 0:00:07.1]} 66... Ke4
{[%clk 0:00:11.9]} 67. Ke2 {[%clk 0:00:07.5]} 67... Kd4 {[%clk 0:00:12.7]} 68.
Kf2 {[%clk 0:00:04.9]} 68... Kd3 {[%clk 0:00:12.7]} 69. Kf3 {[%clk 0:00:05.3]}
69... Kd4 {[%clk 0:00:13.4]} 70. Kf2 {[%clk 0:00:04.5]} 1/2-1/2

[Event "Early-Titled-Tuesday-Blitz-September-05-2023"]
[Site "Chess.com"]
[Date "2023.09.05"]
[Round "9"]
[White "BlitzWizard04"]
[Black "zverr1"]
[Result "0-1"]
[WhiteElo "2597"]
[BlackElo "2504"]
[TimeControl "180+1"]
[EndTime "9:43:55 PDT"]
[Termination "zverr1 won by resignation"]

1. e4 {[%clk 0:03:00.9]} 1... c5 {[%clk 0:02:58.9]} 2. Nf3 {[%clk 0:03:01.5]}
2... d6 {[%clk 0:02:59.4]} 3. d4 {[%clk 0:03:02.2]} 3... cxd4 {[%clk 0:03:00.3]}
4. Nxd4 {[%clk 0:03:02.9]} 4... Nf6 {[%clk 0:03:01.2]} 5. Nc3 {[%clk 0:03:03.5]}
5... a6 {[%clk 0:03:02.1]} 6. Bg5 {[%clk 0:03:03.2]} 6... e6 {[%clk 0:03:02.4]}
7. Qd2 {[%clk 0:03:03.9]} 7... h6 {[%clk 0:02:59.5]} 8. Bh4 {[%clk 0:03:00.7]}
8... Be7 {[%clk 0:02:46]} 9. Bg3 {[%clk 0:02:50.5]} 9... b5 {[%clk 0:02:32.6]}
10. a3 {[%clk 0:02:46.8]} 10... Qb6 {[%clk 0:02:29.8]} 11. O-O-O {[%clk
0:02:44.2]} 11... Bb7 {[%clk 0:02:23]} 12. f3 {[%clk 0:02:30.8]} 12... Nbd7
{[%clk 0:02:17.5]} 13. Bf2 {[%clk 0:02:29.5]} 13... Qc7 {[%clk 0:02:11.9]} 14.
Ndxb5 {[%clk 0:02:23.3]} 14... axb5 {[%clk 0:02:12.8]} 15. Nxb5 {[%clk
0:02:23.5]} 15... Qb8 {[%clk 0:01:58.3]} 16. Nxd6+ {[%clk 0:02:21.8]} 16... Bxd6
{[%clk 0:01:59.1]} 17. Qxd6 {[%clk 0:02:22.7]} 17... Qxd6 {[%clk 0:01:58.7]} 18.
Rxd6 {[%clk 0:02:23.6]} 18... Ke7 {[%clk 0:01:59]} 19. Rd3 {[%clk 0:02:17.4]}
19... Rhc8 {[%clk 0:01:54.9]} 20. Rb3 {[%clk 0:02:13.7]} 20... Ba6 {[%clk
0:01:51.7]} 21. Bxa6 {[%clk 0:02:09.6]} 21... Rxa6 {[%clk 0:01:52.6]} 22. Rd1
{[%clk 0:02:09.5]} 22... Rc7 {[%clk 0:01:40.5]} 23. Be1 {[%clk 0:02:05.1]} 23...
e5 {[%clk 0:01:35.2]} 24. Bb4+ {[%clk 0:02:04.2]} 24... Ke6 {[%clk 0:01:35.9]}
25. Rbd3 {[%clk 0:02:03.7]} 25... Ne8 {[%clk 0:01:28.8]} 26. Kb1 {[%clk
0:01:50.8]} 26... Rac6 {[%clk 0:01:28.2]} 27. c3 {[%clk 0:01:45.4]} 27... g6
{[%clk 0:01:27.6]} 28. a4 {[%clk 0:01:44.9]} 28... f5 {[%clk 0:01:27.8]} 29.
exf5+ {[%clk 0:01:42.8]} 29... gxf5 {[%clk 0:01:28.7]} 30. a5 {[%clk 0:01:43.3]}
30... e4 {[%clk 0:01:27.6]} 31. fxe4 {[%clk 0:01:43.3]} 31... fxe4 {[%clk
0:01:28.5]} 32. Rh3 {[%clk 0:01:43.9]} 32... Kf7 {[%clk 0:01:23.7]} 33. Re1
{[%clk 0:01:43.2]} 33... Re6 {[%clk 0:01:16.9]} 34. Rh4 {[%clk 0:01:37]} 34...
e3 {[%clk 0:01:16.2]} 35. Rh3 {[%clk 0:01:35.5]} 35... e2 {[%clk 0:01:16.6]} 36.
Rf3+ {[%clk 0:01:35.4]} 36... Nef6 {[%clk 0:01:13.6]} 37. Rf2 {[%clk 0:01:35.2]}
37... Ne5 {[%clk 0:01:07.5]} 38. Rfxe2 {[%clk 0:01:26.7]} 38... Nfd7 {[%clk
0:00:54.3]} 39. Rf2+ {[%clk 0:01:18.4]} 39... Rf6 {[%clk 0:00:52.6]} 40. Rxf6+
{[%clk 0:01:18.9]} 40... Kxf6 {[%clk 0:00:53.5]} 41. Rd1 {[%clk 0:01:10.5]}
41... Nc4 {[%clk 0:00:48.1]} 42. b3 {[%clk 0:01:08]} 42... Ne3 {[%clk
0:00:46.5]} 43. Rd6+ {[%clk 0:01:08.2]} 43... Ke5 {[%clk 0:00:44.7]} 44. Rxh6
{[%clk 0:01:01.1]} 44... Nf5 {[%clk 0:00:45.1]} 45. Rh5 {[%clk 0:00:52.3]} 45...
Nf6 {[%clk 0:00:40.7]} 46. Bd6+ {[%clk 0:00:46.2]} 46... Kxd6 {[%clk 0:00:21.8]}
47. Rxf5 {[%clk 0:00:46.2]} 47... Nd5 {[%clk 0:00:19.6]} 48. c4 {[%clk
0:00:42.6]} 48... Ne3 {[%clk 0:00:19.3]} 49. Rg5 {[%clk 0:00:43]} 49... Rb7
{[%clk 0:00:16.7]} 50. Ka2 {[%clk 0:00:42.3]} 50... Nc2 {[%clk 0:00:16.7]} 51.
Kb2 {[%clk 0:00:36.3]} 51... Ne3 {[%clk 0:00:13.5]} 52. Rb5 {[%clk 0:00:25]}
52... Rh7 {[%clk 0:00:11]} 53. a6 {[%clk 0:00:16.5]} 53... Ra7 {[%clk
0:00:05.2]} 54. Rb6+ {[%clk 0:00:13.7]} 54... Kc5 {[%clk 0:00:04.9]} 55. Rg6
{[%clk 0:00:14.4]} 55... Kb4 {[%clk 0:00:03.1]} 56. h4 {[%clk 0:00:13.1]} 56...
Nd1+ {[%clk 0:00:01.7]} 57. Kc2 {[%clk 0:00:12.8]} 57... Ne3+ {[%clk 0:00:02.3]}
58. Kd3 {[%clk 0:00:13.5]} 58... Nf5 {[%clk 0:00:03]} 59. h5 {[%clk 0:00:12.7]}
59... Kxb3 {[%clk 0:00:03.5]} 60. c5 {[%clk 0:00:12.1]} 60... Kb4 {[%clk
0:00:04]} 61. Ke4 {[%clk 0:00:12.3]} 61... Nh4 {[%clk 0:00:03.1]} 62. Rf6 {[%clk
0:00:10.6]} 62... Nxg2 {[%clk 0:00:02.3]} 63. h6 {[%clk 0:00:10.8]} 63... Kxc5
{[%clk 0:00:02.9]} 64. Kf5 {[%clk 0:00:09.4]} 64... Ne3+ {[%clk 0:00:03]} 65.
Kg6 {[%clk 0:00:09.5]} 65... Nd5 {[%clk 0:00:03.9]} 66. Re6 {[%clk 0:00:08.3]}
66... Nf4+ {[%clk 0:00:04.2]} 67. Kf6 {[%clk 0:00:08.1]} 67... Nxe6 {[%clk
0:00:05.1]} 68. Kxe6 {[%clk 0:00:08.8]} 68... Rxa6+ {[%clk 0:00:05.6]} 69. Kf5
{[%clk 0:00:09.1]} 69... Rxh6 {[%clk 0:00:06.5]} 0-1